[Event "45th FIDE Olympiad 2024"]
[Site "Budapest"]
[Date "2024.09.16"]
[Round "6.23"]
[White "Warmerdam, Max"]
[Black "Livaic, Leon"]
[Result "0-1"]
[ECO "E94"]
[WhiteElo "2679"]
[BlackElo "2550"]
[Annotator "TA"]
[PlyCount "92"]
[EventDate "2024.09.05"]
[EventType "team-tourn"]
[EventCountry "HUN"]
[SourceTitle "playchess.com"]
[Source "ChessBase"]
[SourceQuality "1"]
[WhiteTeam "Netherlands"]
[BlackTeam "Croatia"]
[WhiteTeamCountry "NED"]
[BlackTeamCountry "CRO"]
[TimeControl "40/5400+30:1800+30"]

{[%evp 15,92,25,60,60,40,41,54,41,43,39,46,37,52,38,49,53,54,35,47,20,19,0,0,-31,-14,-27,0,0,0,-5,-14,-42,-39,-35,-38,-40,-38,-45,-40,-46,-44,-47,-46,-44,-41,-116,-120,-112,-80,-100,-87,-78,-73,-75,-84,-81,-72,-112,-118,-124,-113,-293,-89,-97,0,-286,-138,-127,-86,-166,-166,-166,-164,-312,-269,-29976,-29979,-29966,-29970]} 1. c4 {[%emt 0:00:05]} Nf6 {[%emt 0:00:13]} 2. Nc3 {[%emt 0:00:09]} g6 {[%emt 0:00:07]} 3. Nf3 {[%emt 0:00:45]} Bg7 {[%emt 0:00:05]} 4. e4 {[%emt 0:00:28]} d6 {[%emt 0:00:06]} 5. d4 {[%emt 0:00:05]} O-O {[%emt 0:00:22]} 6. Be2 {[%emt 0:00:07]} Na6 {[%emt 0:00:40]} 7. O-O {[%emt 0:00:51]} e5 {[%emt 0:00:25]} 8. Be3 {[%emt 0:00:16]} Qe7 {[%emt 0:00:45][%cal Of6e4]} 9. d5 {[%emt 0:04:57]} Ng4 {[%emt 0:01:19]} 10. Bg5 {[%emt 0:00:05][%cal Be3g5,Bg5h4,Bh4g3][%mdl 32]} f6 {[%emt 0:00:25]} 11. Bh4 {[%emt 0:00:06] White is slightly better.} g5 {[%emt 0:00:58]} 12. Bg3 {[%emt 0:00:21]} f5 {[%emt 0:09:11]} 13. exf5 {[%emt 0:01:25]} Bxf5 {[%emt 0:00:16]} 14. Re1 {[%emt 0:06:49]} Nh6 {[%emt 0:03:19]} 15. Nd2 {[%emt 0:02:03]} Nc5 {[%emt 0:02:38]} 16. Rc1 {[%emt 0:04:32]} a5 {[%emt 0:05:11]} 17. Bf1 {[%emt 0:09:05]} b6 {[%emt 0:07:49]} 18. Nde4 {[%emt 0:01:32]} g4 {[%emt 0:07:47]} 19. a3 {[%emt 0:08:12]} Nf7 {[%emt 0:03:55]} 20. Nxc5 {[%emt 0:09:48]} bxc5 {[%emt 0:00:04]} 21. Bd3 {[%emt 0:00:13]} Bxd3 {[%emt 0:07:51]} 22. Qxd3 {[%emt 0:01:21]} Qg5 {[%emt 0:10:00]} 23. Rb1 {[%emt 0:12:45]} Nh6 {[%emt 0:06:00]} 24. b4 {[%emt 0:01:54]} axb4 {[%emt 0:00:05]} 25. axb4 {[%emt 0:00:05]} cxb4 {[%emt 0:00:48]} 26. Rxb4 {[%emt 0:00:47]} Nf5 {[%emt 0:00:22]} 27. Ne4 {[%emt 0:18:03]} Qg6 {[%emt 0:00:23] Threatens to win with ...h5.} 28. Rb7 {[%emt 0:00:05]} h5 $1 {[%emt 0:06:56] Hoping for ...Rf7.} 29. Rxc7 {[%emt 0:01:23]} h4 {[%emt 0:00:11]} 30. Rc6 {[%emt 0:01:12]} hxg3 $17 {[%emt 0:00:44]} 31. hxg3 {[%emt 0:00:03][%cal Oe4d6]} Qh5 {[%emt 0:08:34]} 32. c5 {[%emt 0:02:21]} dxc5 {[%emt 0:03:11]} 33. d6 {[%emt 0:00:21]} Rad8 {[%emt 0:03:58]} 34. Rxc5 {[%emt 0:02:36]} Qg6 {[%emt 0:03:06]} 35. Rc6 {[%emt 0:02:14]} Nd4 {[%emt 0:01:49]} 36. Ra6 {[%emt 0:00:12]} Qf5 {[%emt 0:03:06]} 37. Qc4+ {[%emt 0:02:20]} Kh8 {[%emt 0:01:07]} 38. Qd3 $2 {[%emt 0:06:48]} (38. Qc1 $17 {was necessary.}) 38... Ne6 $2 {[%emt 0:01:45]} (38... Bh6 $19 39. Rea1 Rd7) 39. Qe3 {[%emt 0:00:59]} Nd4 $2 {[%emt 0:01:04]} (39... Qg6 $17) 40. Qd3 $19 {[%emt 0:00:18]} Rb8 {[%emt 0:02:59]} (40... Bh6 $19 {has better winning chances. ...Rd7 is the strong threat.} 41. Rea1 Rd7) 41. Qd2 $17 {[%emt 0:05:01]} Rbc8 {[%emt 0:04:48] White must now prevent ...Rc2.} 42. Ra7 {[%emt 0:07:39]} (42. Qg5 $17 {might work better.}) 42... Rc2 $19 {[%emt 0:12:04]} 43. Qe3 {[%emt 0:04:47]} Rb2 {[%emt 0:00:09] Strongly threatening ...Nc2.} 44. Ra4 {[%emt 0:05:02]} (44. Qg5 $142 Qxg5 45. Nxg5 Rbxf2 (45... Rfxf2 46. Ra8+ Rf8 47. Rxf8+ Bxf8 48. d7 $15) 46. d7) 44... Rfb8 {[%emt 0:01:51] aiming for ...Nc2.} 45. Qd3 {[%emt 0:05:35] [#]} (45. Qg5 $19 Qxg5 46. Nxg5) 45... Ne2+ $1 {[%emt 0:02:02][%mdl 512]} 46. Kf1 {[%emt 0:00:04] [#]} Qh7 $1 {[%emt 0:00:29] Weighted Error Value: White=0.31/Black=0.22 (precise) .  Loses game:     	White=1     	---        Missed win:     	---       	Black=1      Mistake:       	White=4     	Black=2      Inaccurate:     	White=4     	Black=1      OK:         	White=14    	Black=17     Best:        	White=2     	Black=4      Strong:       	---       	Black=1      Brilliant:      	---       	Black=1} 0-1

[Event "45th FIDE Olympiad 2024"]
[Site "Budapest"]
[Date "2024.09.16"]
[Round "6.23"]
[White "Jones, Rupert"]
[Black "Momin, Fayzan"]
[Result "1/2-1/2"]
[WhiteElo "1849"]
[BlackElo "2064"]
[PlyCount "67"]
[EventDate "2024.09.05"]
[EventType "team-tourn"]
[EventCountry "HUN"]
[WhiteTeam "Papua New Guinea"]
[BlackTeam "Pakistan"]
[WhiteTeamCountry "PNG"]
[BlackTeamCountry "PAK"]
[TimeControl "40/5400+30:1800+30"]

1. e4 c5 2. Nf3 d6 3. d4 cxd4 4. Nxd4 Nf6 5. Nc3 a6 6. Qf3 g6 7. h3 Bg7 8. Bc4 Nbd7 9. Bb3 Nc5 10. Be3 e5 11. Nde2 Nxb3 12. axb3 Be6 13. Rd1 h6 14. O-O Rc8 15. Rd2 Rc6 16. Nd5 Bxd5 17. exd5 Rc8 18. Nc3 O-O 19. Qe2 Re8 20. f3 Nh5 21. Qf2 Nf4 22. Kh2 Kh7 23. Bb6 Qd7 24. Be3 Rg8 25. Na4 Qe7 26. Nb6 Rcd8 27. c4 g5 28. b4 e4 29. fxe4 Qxe4 30. Qf3 Rge8 31. Bg1 Kg6 32. g3 Qxf3 33. Rxf3 Nh5 34. c5 1/2-1/2

[Event "45th FIDE Olympiad 2024"]
[Site "Budapest"]
[Date "2024.09.16"]
[Round "6.24"]
[White "Kozul, Zdenko"]
[Black "L'ami, Erwin"]
[Result "0-1"]
[ECO "E08"]
[WhiteElo "2515"]
[BlackElo "2628"]
[Annotator "TA"]
[PlyCount "62"]
[EventDate "2024.09.05"]
[EventType "team-tourn"]
[EventCountry "HUN"]
[SourceTitle "playchess.com"]
[Source "ChessBase"]
[SourceQuality "1"]
[WhiteTeam "Croatia"]
[BlackTeam "Netherlands"]
[WhiteTeamCountry "CRO"]
[BlackTeamCountry "NED"]
[TimeControl "40/5400+30:1800+30"]

{[%evp 23,62,0,0,0,2,8,3,8,1,1,10,-22,-28,-28,-26,-130,-114,-157,-165,-119,-76,-164,-141,-135,-122,-320,-310,-332,-307,-355,-315,-291,-294,-394,-387,-5281,-5222,-1790,-326,-298,-294]} 1. d4 {[%emt 0:00:05]} d5 {[%emt 0:00:09]} 2. c4 {[%emt 0:00:15]} e6 {[%emt 0:00:11]} 3. Nf3 {[%emt 0:00:45]} Nf6 {[%emt 0:00:08]} 4. g3 {[%emt 0:00:50]} Bb4+ {[%emt 0:00:36]} 5. Bd2 {[%emt 0:00:43]} Be7 {[%emt 0:00:15]} 6. Bg2 {[%emt 0:00:08]} c6 {[%emt 0:00:47]} 7. Qc2 {[%emt 0:02:50]} b6 {[%emt 0:01:22]} 8. O-O {[%emt 0:02:47]} Nbd7 {[%emt 0:01:29]} 9. cxd5 {[%emt 0:09:15]} cxd5 {[%emt 0:00:25]} 10. Rc1 {[%emt 0:00:44]} O-O {[%emt 0:02:18]} 11. Bf4 {[%emt 0:04:29]} Bb7 {[%emt 0:12:55]} 12. Bc7 {[%emt 0:17:26]} Qe8 {[%emt 0:00:39]} 13. Qb3 {[%emt 0:00:22]} Rc8 {[%emt 0:03:48] And now ...Bd6 would win.} 14. Na3 {[%emt 0:04:18]} Ne4 {[%emt 0:00:48]} 15. Nb5 {[%emt 0:10:21] The position is equal.} Ndc5 {[%emt 0:00:45]} 16. dxc5 {[%emt 0:00:23]} bxc5 {[%emt 0:00:15] Strongly threatening ...c4.} 17. Nfd4 {[%emt 0:14:58] Black must now prevent Bxe4.} a6 {[%emt 0:13:43]} 18. Bxe4 {[%emt 0:06:30]} axb5 {[%emt 0:02:39]} 19. Nxb5 {[%emt 0:00:29]} (19. Be5 $11) 19... c4 $1 $17 {[%emt 0:03:51]} 20. Bxh7+ {[%emt 0:02:21]} Kxh7 {[%emt 0:07:07]} 21. Qc2+ {[%emt 0:00:07]} f5 {[%emt 0:01:13]} 22. Nd6 {[%emt 0:10:30] [#]} (22. Bd6 $17) 22... Qc6 $1 $19 {[%emt 0:03:55]} 23. Nxc8 {[%emt 0:00:55]} Rxc8 $40 {[%emt 0:00:32][%mdl 128] Black attacks with force.} (23... d4 $6 24. f3 Rxc8 25. Bf4 $11) 24. Ba5 $2 {[%emt 0:02:22] White does not recover from this.} (24. Be5 $2 d4 25. f3 Qc5 26. Bxd4 Qxd4+ 27. Kg2 Bf6 $19) (24. Bf4 $17) 24... d4 {[%emt 0:02:21]} 25. f3 {[%emt 0:00:05] [#]} d3 $1 {[%emt 0:03:40][%mdl 512]} 26. Qd1 {[%emt 0:01:18]} (26. Qd2 dxe2) 26... dxe2 {[%emt 0:05:37]} 27. Qxe2 {[%emt 0:00:09]} Qc5+ {[%emt 0:00:17]} (27... Qxf3 28. Qxf3 (28. Qxe6 $2 Qg2#) 28... Bxf3 29. Re1 $16) 28. Kg2 {[%emt 0:00:21]} Qxa5 {[%emt 0:00:34]} 29. Qxe6 $2 {[%emt 0:03:01]} (29. Rc2 Bd5 30. b3) 29... Qd2+ {[%emt 0:04:36]} 30. Kf1 {[%emt 0:00:51]} Qd3+ $2 {[%emt 0:03:02]} (30... Qxh2 {( -> ...Qh1+)} 31. Qxe7 Qh1+ (31... Bxf3 $2 {perishes.} 32. Qh4+ Qxh4 33. gxh4 $18) 32. Ke2 Qxf3+ (32... Bxf3+ 33. Ke3 $16) 33. Kd2 Qd3+ 34. Ke1 Qxg3+ 35. Ke2 Bf3+ 36. Ke3 Be4+ 37. Kd4 Qf2+ 38. Ke5 Qxb2+ 39. Kf4 Qh2+ 40. Ke3 c3 41. Rd1 c2 42. Qxe4 Qg3+ (42... cxd1=N+ {is a self mate.} 43. Rxd1 Qg3+ 44. Qf3 Re8+ 45. Kd4 Qxf3 46. Rd3 Rd8+ 47. Kc5 Rc8+ 48. Kd6 Qxd3+ 49. Ke7 Rc7+ 50. Ke6 Rd7 51. Ke5 Qe4#) 43. Qf3 cxd1=N+ (43... cxd1=Q 44. Rxd1 Re8+ 45. Kd4 Qxf3 46. Rd3 Rd8+ 47. Kc5 Rc8+ 48. Kd6 Qxd3+ 49. Ke7 Rc7+ 50. Ke6 Rd7 51. Ke5 Qe4#) 44. Rxd1 Re8+ 45. Kd4 Qxf3 46. Rd3 Rd8+ 47. Kc5 Rc8+ (47... Qxd3 48. Kb6 Qc3 49. Kb7 Qc5 50. Ka6 Rd7 51. a4 Ra7#) (47... Rxd3 48. Kb6 Qd5 49. Kc7 Qc5+ 50. Kb8 Qb6+ 51. Kc8 Rd8#) 48. Kb6 Qc6+ (48... Qxd3 49. Kb7 Qc4 50. Kb6 Rc6+ 51. Kb7 Qb5+ 52. Ka8 Ra6#) 49. Ka5 Ra8+ 50. Kb4 Rb8+ 51. Ka5 Qb5#) 31. Qe2 {[%emt 0:01:52]} Qxf3+ {[%emt 0:01:24] Weighted Error Value: White=0.81/Black=0.29 (precise) .  Loses game:     	White=1     	---        Mistake:       	White=3     	---        Inaccurate:     	White=3     	Black=1      OK:         	White=6     	Black=5      Best:        	White=2     	Black=3      Strong:       	---       	Black=2      Brilliant:      	---       	Black=1} 0-1

[Event "45th FIDE Olympiad 2024"]
[Site "Budapest"]
[Date "2024.09.16"]
[Round "6.25"]
[White "Vocaturo, Daniele"]
[Black "Vitiugov, Nikita"]
[Result "1/2-1/2"]
[ECO "C48"]
[WhiteElo "2600"]
[BlackElo "2676"]
[Annotator "TA"]
[PlyCount "62"]
[EventDate "2024.09.05"]
[EventType "team-tourn"]
[EventCountry "HUN"]
[SourceTitle "playchess.com"]
[Source "ChessBase"]
[SourceQuality "1"]
[WhiteTeam "Italy"]
[BlackTeam "England"]
[WhiteTeamCountry "ITA"]
[BlackTeamCountry "ENG"]
[TimeControl "40/5400+30:1800+30"]

{[%evp 10,62,44,43,30,41,52,45,45,0,0,0,0,0,0,0,11,-7,13,1,13,0,0,0,0,0,0,0,0,0,0,0,4,0,0,0,-10,0,0,-7,-4,-13,-7,-10,-6,-14,-1,-4,0,-7,0,0,0,-12,0]} 1. e4 {[%emt 0:00:10]} e5 {[%emt 0:00:11]} 2. Nf3 {[%emt 0:00:30]} Nc6 {[%emt 0:00:08]} 3. Nc3 {[%emt 0:00:13]} Nf6 {[%emt 0:00:14]} 4. Bb5 {[%emt 0:00:24]} Nd4 {[%emt 0:03:01]} 5. Bc4 {[%emt 0:00:34]} Bc5 {[%emt 0:01:17]} 6. Nxe5 {[%emt 0:01:02]} Qe7 {[%emt 0:03:16]} 7. Nf3 {[%emt 0:00:30]} ({Of course not} 7. Nxf7 d5 8. Nxd5 Qxf7 9. Nxf6+ Qxf6 10. Qh5+ Qg6 11. Qxg6+ (11. Qxc5 $2 Qxe4+ 12. Kf1 Nxc2 $19) 11... hxg6 $15) ({But not} 7. Bxf7+ Kf8 8. Nd3 (8. f4 d6 $17) 8... Kxf7 $17) 7... d5 {[%emt 0:01:17] Prevents d3} 8. Bxd5 {[%emt 0:00:21]} Bg4 {[%emt 0:02:13] [#] aiming for ...Nxd5. White is slightly better.} 9. h3 {[%emt 0:00:23]} (9. Bxb7 $2 {loses.} Rb8 10. h3 Bxf3 (10... Rxb7 $2 11. hxg4 Nxe4 12. O-O $18) 11. gxf3 Rxb7 $19) (9. d3 $5) 9... Bxf3 {[%emt 0:10:02] The position is equal.} 10. gxf3 {[%emt 0:00:09]} c6 {[%emt 0:06:23]} 11. Bb3 {[%emt 0:00:51]} Nh5 {[%emt 0:01:35] Strongly threatening ...Qh4.} 12. f4 {[%emt 0:03:07]} Nxf4 {[%emt 0:04:22] [#] And now ...Qh4 would win.} (12... Qh4 $5 13. Qg4 Nxc2+ 14. Bxc2 Qxf2+ 15. Kd1 Ng3 $11) 13. d3 {[%emt 0:04:51]} Qf6 {[%emt 0:02:38]} 14. Qg4 {[%emt 0:01:06] Inhibits Ng2+.} Bd6 {[%emt 0:05:41][%cal Bc5d6,Bd6e5,Be5d4][%mdl 32] ...h5 would now be deadly.} 15. Be3 {[%emt 0:05:48]} Be5 {[%emt 0:03:04] Threatens to win with ...h5.} 16. Bxd4 {[%emt 0:13:47]} Bxd4 {[%emt 0:00:06]} 17. O-O-O {[%emt 0:00:17][%cal Oe4e5]} O-O {[%emt 0:03:05][%cal Oa7a5]} 18. Kb1 {[%emt 0:06:38][%cal Oe4e5]} a5 {[%emt 0:02:08]} 19. e5 {[%emt 0:09:28]} Qxe5 {[%emt 0:03:52]} 20. Rhe1 {[%emt 0:02:04]} Qc7 {[%emt 0:01:30][%cal Od4c3] ...Bxc3! is the strong threat.} 21. Re4 {[%emt 0:05:03][%csl LRd4,LRf4]} Bxc3 {[%emt 0:00:50]} 22. Qxf4 {[%emt 0:01:19]} Qxf4 {[%emt 0:00:27]} 23. Rxf4 {[%emt 0:00:06]} Be5 {[%emt 0:02:01]} 24. Re4 {[%emt 0:01:16]} Bd6 {[%emt 0:00:23]} 25. Rde1 {[%emt 0:01:11]} g6 {[%emt 0:02:02]} 26. c3 {[%emt 0:02:02]} Kg7 {[%emt 0:00:46]} 27. d4 {[%emt 0:00:17]} Rad8 {[%emt 0:03:02]} 28. Kc2 {[%emt 0:10:02]} Rd7 {[%emt 0:01:47]} 29. R4e3 {[%emt 0:02:10]} Rfd8 {[%emt 0:02:41]} 30. Bc4 {[%emt 0:02:07]} Kf8 {[%emt 0:01:02]} 31. a3 {[%emt 0:02:15]} Re7 {[%emt 0:03:53] Weighted Error Value: White=0.04 (flawless) /Black=0.03 (flawless) .  Inaccurate:     	White=1     	---        OK:         	White=14    	Black=12     Best:        	White=1     	---} 1/2-1/2

[Event "45th FIDE Olympiad 2024"]
[Site "Budapest"]
[Date "2024.09.16"]
[Round "6.25"]
[White "Solomon, Joshua"]
[Black "Asabri, Hussien"]
[Result "0-1"]
[WhiteElo "1587"]
[BlackElo "2196"]
[PlyCount "72"]
[EventDate "2024.09.05"]
[EventType "team-tourn"]
[EventCountry "HUN"]
[WhiteTeam "Antigua and Barbuda"]
[BlackTeam "Libya"]
[BlackTeamCountry "LBY"]
[TimeControl "40/5400+30:1800+30"]

1. d4 Nf6 2. c4 c5 3. d5 d6 4. Nc3 g6 5. Nf3 Bg7 6. e4 O-O 7. Be2 e6 8. O-O exd5 9. cxd5 a6 10. a4 Re8 11. Qc2 Nbd7 12. Bf4 Qe7 13. Rfe1 Nh5 14. Bg5 Bf6 15. Bh6 Ne5 16. Nxe5 Qxe5 17. Qd2 Bd7 18. Kh1 Rab8 19. f4 Qd4 20. Qc2 Qf2 21. Rf1 Qh4 22. Qd3 b5 23. Qf3 b4 24. Nd1 Rxe4 25. Rf2 Rxe2 26. Rxe2 Bg4 27. Qe3 Bxe2 28. g3 Qg4 29. Nf2 Qf3+ 30. Qxf3 Bxf3+ 31. Kg1 Bxb2 32. Re1 Bd4 33. Kf1 b3 34. g4 Nf6 35. g5 Nxd5 36. f5 Ne3+ {0-} 0-1

[Event "45th FIDE Olympiad 2024"]
[Site "Budapest"]
[Date "2024.09.16"]
[Round "6.26"]
[White "Adams, Michael"]
[Black "Lodici, Lorenzo"]
[Result "1/2-1/2"]
[ECO "C84"]
[WhiteElo "2661"]
[BlackElo "2556"]
[Annotator "TA"]
[PlyCount "87"]
[EventDate "2024.09.05"]
[EventType "team-tourn"]
[EventCountry "HUN"]
[SourceTitle "playchess.com"]
[Source "ChessBase"]
[SourceQuality "1"]
[WhiteTeam "England"]
[BlackTeam "Italy"]
[WhiteTeamCountry "ENG"]
[BlackTeamCountry "ITA"]
[TimeControl "40/5400+30:1800+30"]

{[%evp 15,87,10,20,6,0,0,3,0,0,6,8,0,2,3,9,-13,0,0,9,0,36,4,35,0,0,0,58,66,57,72,78,76,82,100,99,72,68,44,114,0,0,0,0,-67,75,79,102,115,114,0,0,0,0,-8,-8,-56,-46,-304,-280,-272,545,45,39,41,35,35,116,14,18,0,0,0,0,0]} 1. e4 {[%emt 0:00:03]} e5 {[%emt 0:00:04]} 2. Nf3 {[%emt 0:00:06]} Nc6 {[%emt 0:00:03]} 3. Bb5 {[%emt 0:00:06][%cal Bf1b5,Bb5a4,Ba4b3,Bb3a2,Ba2d5][%mdl 32]} a6 {[%emt 0:00:04]} 4. Ba4 {[%emt 0:00:04]} Nf6 {[%emt 0:00:04]} 5. O-O {[%emt 0:00:05]} Be7 {[%emt 0:00:03]} 6. d3 {[%emt 0:01:33]} b5 {[%emt 0:00:09]} 7. Bb3 {[%emt 0:00:05]} d6 {[%emt 0:00:03]} 8. a4 {[%emt 0:00:53]} Bd7 {[%emt 0:00:04]} 9. Nc3 {[%emt 0:01:45]} Na5 {[%emt 0:05:29]} 10. Ba2 {[%emt 0:00:16]} b4 {[%emt 0:00:38]} 11. Nd5 {[%emt 0:00:44]} Nxd5 {[%emt 0:01:54]} 12. Bxd5 {[%emt 0:00:07]} c6 {[%emt 0:00:13]} 13. Ba2 {[%emt 0:00:06]} c5 {[%emt 0:00:02]} 14. c3 {[%emt 0:15:44]} Rb8 {[%emt 0:03:42]} 15. Bd5 {[%emt 0:00:12][%cal Of3g5]} Be6 {[%emt 0:07:16]} 16. Bxe6 {[%emt 0:05:35]} fxe6 {[%emt 0:00:40]} 17. Bd2 {[%emt 0:03:37]} Nc6 {[%emt 0:04:34]} 18. Be3 {[%emt 0:06:20]} Na5 {[%emt 0:03:45]} 19. d4 {[%emt 0:05:12]} exd4 {[%emt 0:04:35]} 20. cxd4 {[%emt 0:00:04]} c4 {[%emt 0:00:03]} (20... O-O $1 $11) 21. d5 $14 {[%emt 0:00:08]} e5 {[%emt 0:04:40] Prevents Nd4.} 22. Rc1 {[%emt 0:02:11]} Qd7 {[%emt 0:05:13]} 23. Nd2 {[%emt 0:07:53]} c3 {[%emt 0:00:37]} 24. bxc3 {[%emt 0:01:02]} b3 {[%emt 0:00:02][%cal Oe8g8]} 25. Qe2 {[%emt 0:16:58]} b2 {[%emt 0:08:16]} 26. Rb1 {[%emt 0:00:49]} (26. Qxa6 $2 bxc1=B (26... bxc1=R $2 27. Rxc1 Qxa4 28. Bb6 $19) 27. Rxc1 Qxa4 $19) 26... Qb7 {[%emt 0:02:56]} (26... O-O $14) 27. Nc4 {[%emt 0:10:50]} (27. Qh5+ g6 28. Qh6 Bf6) (27. f4 $1 $16 {[%cal Rf4e5] Threatens to win with fxe5.} O-O 28. fxe5) 27... Nxc4 $11 {[%emt 0:00:57]} 28. Qxc4 {[%emt 0:00:01]} O-O $1 {[%emt 0:01:26]} 29. a5 {[%emt 0:04:08]} (29. Rfe1 $11 Rfc8 (29... Qb3 30. Qxb3 Rxb3 31. Re2 $16) 30. Qd3) 29... Qb5 {[%emt 0:10:55] [#]} (29... Bd8 $1 $15 30. Qa4 Qb3) 30. Qc7 $1 $16 {[%emt 0:02:35]} Bd8 {[%emt 0:05:12][%cal Be7d8,Bd8a5,Ba5c3][%mdl 32]} 31. Qxd6 {[%emt 0:00:52] c4 is the strong threat.} Bxa5 {[%emt 0:00:24]} 32. Qxe5 {[%emt 0:02:48]} ({White has to play} 32. Qe6+ $16 Kh8 33. Qxe5) 32... Rfe8 $1 $11 {[%emt 0:02:06]} 33. Qd4 {[%emt 0:01:44]} Qb3 {[%emt 0:01:16]} 34. d6 {[%emt 0:01:50]} Bxc3 {[%emt 0:01:18]} 35. Qc5 {[%emt 0:07:23]} (35. Qa7 $1 $11) 35... Rec8 $1 $15 {[%emt 0:11:15]} (35... Rxe4 36. d7 Rd8 37. Bg5 $16) 36. Qa7 {[%emt 0:00:54][%mdl 8192] [#]} (36. Qh5 $1 $15) 36... Qb7 $1 $19 {[%emt 0:02:45]} 37. d7 {[%emt 0:00:07]} Qxa7 {[%emt 0:02:59][%mdl 8192]} (37... Rc7 $19 {and life is good for Black.} 38. Qb6 Rxd7 (38... Qxb6 $2 39. d8=R+ Rxd8 40. Bxb6 $19) 39. Qe6+ Kh8) 38. dxc8=Q+ $2 {[%emt 0:00:12]} ({Stronger than} 38. dxc8=R+ Rxc8 39. Bxa7 a5 $11) (38. Bxa7 $18 Kf7 39. Rfd1 (39. dxc8=R Rxc8 40. f4 a5 $18)) 38... Rxc8 $14 {[%emt 0:00:05][%cal Bb8c8,Bc8c4,Bc4e4][%mdl 32]} 39. Bxa7 {[%emt 0:00:02]} a5 {[%emt 0:00:04][%cal Ba6a5,Ba5a4][%mdl 32] [#]} 40. Rfc1 $1 {[%emt 0:03:47]} bxc1=Q+ (40... bxc1=R+ 41. Rxc1) 41. Rxc1 {[%emt 0:30:05]} Rc4 {[%emt 0:38:10] Inhibits Bd4. The position is equal.} ({Wrong is} 41... a4 $2 42. Bd4 $18) 42. Kf1 {[%emt 0:01:58] Be3 would now be deadly.} (42. Be3 $5 a4 43. Bd2 $11) 42... a4 $1 {[%emt 0:01:48][%cal Oa4a3]} 43. Ke2 {[%emt 0:00:00] Black must now prevent Kd3.} Rxe4+ {[%emt 0:00:00]} 44. Kd3 {[%emt 0:00:00] Weighted Error Value: White=0.57/Black=0.30.  Loses game:     	White=1     	---        Missed win:     	White=1     	Black=1      Mistake:       	White=4     	Black=3      Inaccurate:     	White=3     	Black=2      OK:         	White=10    	Black=15     Best:        	White=1     	Black=4      Strong:       	White=1     	Black=5} 1/2-1/2

[Event "45th FIDE Olympiad 2024"]
[Site "Budapest"]
[Date "2024.09.16"]
[Round "6.26"]
[White "Alhassadi, Yousef A."]
[Black "Matthew, Bailey"]
[Result "1-0"]
[WhiteElo "2082"]
[BlackElo "1548"]
[PlyCount "51"]
[EventDate "2024.09.05"]
[EventType "team-tourn"]
[EventCountry "HUN"]
[WhiteTeam "Libya"]
[BlackTeam "Antigua and Barbuda"]
[WhiteTeamCountry "LBY"]
[TimeControl "40/5400+30:1800+30"]

1. e4 c6 2. Nf3 d5 3. exd5 cxd5 4. Ne5 Nc6 5. Bb5 Bd7 6. Bxc6 bxc6 7. d4 Nf6 8. O-O e6 9. Bg5 Be7 10. Nc3 O-O 11. Na4 Ne4 12. Bxe7 Qxe7 13. f3 Nd6 14. Re1 f6 15. Nxd7 Qxd7 16. Nc5 Qf7 17. Rxe6 Rad8 18. Qd3 Qh5 19. Rae1 Qh4 20. R6e2 Rb8 21. Nd7 Rbe8 22. Nxf8 Rxf8 23. c3 f5 24. Qa6 f4 25. Qxc6 Qd8 26. Qxd5+ 1-0

[Event "45th FIDE Olympiad 2024"]
[Site "Budapest"]
[Date "2024.09.16"]
[Round "6.27"]
[White "Moroni, Luca Jr"]
[Black "McShane, Luke J"]
[Result "0-1"]
[ECO "E43"]
[WhiteElo "2558"]
[BlackElo "2611"]
[Annotator "RC"]
[PlyCount "84"]
[EventDate "2024.09.05"]
[EventType "team-tourn"]
[EventCountry "HUN"]
[SourceTitle "playchess.com"]
[Source "ChessBase"]
[SourceQuality "1"]
[WhiteTeam "Italy"]
[BlackTeam "England"]
[WhiteTeamCountry "ITA"]
[BlackTeamCountry "ENG"]
[TimeControl "40/5400+30:1800+30"]

1. d4 {[%emt 0:00:05]} Nf6 {[%emt 0:00:19]} 2. c4 {[%emt 0:00:16]} e6 {[%emt 0:00:04]} 3. Nc3 {[%emt 0:00:10]} Bb4 {[%emt 0:00:06]} 4. Nf3 {[%emt 0:00:05]} b6 {[%emt 0:00:32]} 5. e3 {[%emt 0:00:35]} Bb7 {[%emt 0:00:15]} 6. Bd3 {[%emt 0:00:17]} O-O {[%emt 0:08:13]} 7. O-O {[%emt 0:00:27]} c5 {[%emt 0:00:08]} 8. Na4 {[%emt 0:00:47]} cxd4 {[%emt 0:00:16]} 9. exd4 {[%emt 0:00:09]} Re8 {[%emt 0:03:07]} 10. a3 {[%emt 0:03:09]} Bf8 {[%emt 0:02:37]} 11. b4 {[%emt 0:01:11]} a5 {[%emt 0:04:05]} 12. b5 {[%emt 0:01:20]} d6 {[%emt 0:00:10]} 13. Be3 {[%emt 0:04:53]} Nbd7 {[%emt 0:00:22]} 14. Nd2 {[%emt 0:00:57]} e5 {[%emt 0:06:02]} 15. dxe5 {[%emt 0:15:59]} Rxe5 {[%emt 0:00:53]} 16. Nb3 {[%emt 0:10:50]} g6 {[%emt 0:16:50]} 17. Rc1 {[%emt 0:09:48]} Rxe3 {[%emt 0:11:49]} 18. fxe3 {[%emt 0:01:40]} Bh6 {[%emt 0:00:08]} 19. Kh1 {[%emt 0:12:11]} Ne5 {[%emt 0:01:29]} 20. Be2 {[%emt 0:04:29]} Ne4 {[%emt 0:08:45]} 21. Bf3 {[%emt 0:09:06]} Bxe3 {[%emt 0:10:07]} 22. Bxe4 {[%emt 0:03:32]} Bxe4 {[%emt 0:00:07]} 23. Qe2 {[%emt 0:02:07]} Bxc1 {[%emt 0:02:14]} 24. Qxe4 {[%emt 0:00:08]} Bxa3 {[%emt 0:01:50]} 25. Nxb6 {[%emt 0:00:53]} Rb8 {[%emt 0:04:57]} 26. Nd5 {[%emt 0:00:50]} Rc8 {[%emt 0:04:24]} 27. Nxa5 {[%emt 0:04:25]} Qxa5 {[%emt 0:12:31]} 28. Ne7+ {[%emt 0:00:06]} Kg7 {[%emt 0:00:04]} 29. Nxc8 {[%emt 0:00:06]} Qc7 {[%emt 0:00:22]} 30. Ra1 {[%emt 0:03:58]} Bc5 {[%emt 0:00:51]} 31. Ra8 {[%emt 0:01:01]} Qd8 {[%emt 0:01:27]} 32. h3 {[%emt 0:03:25]} Qf6 {[%emt 0:00:36]} 33. Qe2 {[%emt 0:02:32]} Ng4 {[%emt 0:00:34]} 34. Ne7 {[%emt 0:01:42]} Nf2+ {[%emt 0:00:18]} 35. Kh2 {[%emt 0:00:01]} Qf4+ {[%emt 0:00:25]} 36. g3 {[%emt 0:00:02]} Qc1 {[%emt 0:00:03]} 37. Qf3 {[%emt 0:02:47]} Nd3 {[%emt 0:00:01]} 38. Qg2 {[%emt 0:02:19]} Ne1 {[%emt 0:00:13]} 39. Qe2 {[%emt 0:00:52]} Nf3+ {[%emt 0:00:18]} 40. Kg2 {[%emt 0:00:01]} Ne1+ {[%emt 0:00:54]} 41. Kh2 {[%emt 0:30:27]} Nf3+ {[%emt 0:10:34]} 42. Kg2 {[%emt 0:00:00]} Ng5 {[%emt 0:00:25]} 0-1